bitfinex/quotes_BTCUSD_20240607
["timestamp","ask_amount","ask_price","bid_price","bid_amount"]
[1717730423106,0.00862,70870.0,70869.0,1.07250846]
[1717730423334,0.25462,70870.0,70869.0,0.63087114]
[1717730423566,0.25462,70870.0,70869.0,0.69787114]
[1717730424025,0.25462,70870.0,70869.0,0.66087114]
[1717730424243,0.25462,70870.0,70869.0,0.64687114]
[1717730424637,0.25462,70870.0,70869.0,0.66087114]
[1717730425100,0.25462,70870.0,70869.0,0.64687114]
[1717730425334,0.25462,70870.0,70869.0,0.75838987]
[1717730425809,0.25462,70870.0,70869.0,0.77138987]
[1717730426032,0.25462,70870.0,70869.0,0.32217987]
[1717730426252,0.25462,70870.0,70869.0,0.38766114]
[1717730426403,0.25462,70870.0,70869.0,0.37617987]
[1717730426616,0.25462,70870.0,70869.0,0.39066114]
[1717730426820,0.25462,70870.0,70869.0,0.37917987]
[1717730427018,0.25462,70870.0,70869.0,0.38017987]
[1717730427225,0.25462,70870.0,70869.0,0.37617987]
[1717730427679,0.25462,70870.0,70869.0,0.38417987]
[1717730427847,0.25462,70870.0,70869.0,0.38617987]
[1717730428055,0.25462,70870.0,70869.0,0.31917987]
[1717730429531,0.25462,70870.0,70869.0,0.38617987]
[1717730429954,0.25462,70870.0,70869.0,0.38417987]
[1717730430157,0.25462,70870.0,70869.0,0.38217987]
[1717730430366,0.25462,70870.0,70869.0,0.32666114]
[1717730430578,0.25462,70870.0,70869.0,0.50766114]
[1717730430785,0.25462,70870.0,70869.0,0.50166114]
[1717730430993,0.25462,70870.0,70869.0,0.79387114]
[1717730431246,0.25462,70870.0,70869.0,0.80687114]
[1717730433342,0.25462,70870.0,70869.0,0.80909281]
[1717730433534,0.25462,70870.0,70869.0,0.79909281]
[1717730433837,0.00862,70870.0,70869.0,0.80909281]
[1717730435060,0.00862,70870.0,70869.0,0.79909281]
[1717730435270,0.00862,70870.0,70869.0,0.80909273]
[1717730435524,0.00862,70870.0,70869.0,1.29330273]
[1717730436034,0.00862,70870.0,70869.0,1.45910273]
[1717730436882,0.00862,70870.0,70869.0,1.44610273]
[1717730437094,0.00862,70870.0,70869.0,1.43610273]
[1717730437302,0.00862,70870.0,70869.0,1.44910273]
[1717730437740,0.00862,70870.0,70869.0,1.44510273]
[1717730437994,0.00862,70870.0,70869.0,1.25610273]
[1717730438214,0.00862,70870.0,70869.0,1.02330273]
[1717730438427,0.00862,70870.0,70869.0,1.29230273]
[1717730438886,0.00862,70870.0,70869.0,1.09230273]
[1717730439802,0.00862,70870.0,70869.0,1.09030273]
[1717730440633,0.00862,70870.0,70869.0,1.02330273]
[1717730440834,0.00862,70870.0,70869.0,1.09030273]
[1717730445138,0.00862,70870.0,70869.0,1.09230273]
[1717730445355,0.00862,70870.0,70869.0,1.29230273]
[1717730445783,0.00862,70870.0,70869.0,1.09230273]
[1717730446181,0.00862,70870.0,70869.0,1.09030273]
[1717730446406,0.00862,70870.0,70869.0,1.09229749]
[1717730448112,0.00862,70870.0,70869.0,1.09029749]
[1717730448422,0.00862,70870.0,70869.0,1.25159749]
[1717730448645,0.00862,70870.0,70869.0,1.32859749]
[1717730448868,0.00862,70876.0,70875.0,0.222]
[1717730449088,0.00862,70876.0,70875.0,0.55982649]
[1717730449908,0.00862,70876.0,70875.0,0.63299028]
[1717730450313,0.00862,70876.0,70875.0,1.33845528]
[1717730450516,0.00862,70876.0,70875.0,1.34345528]
[1717730450890,0.00862,70876.0,70875.0,1.34845528]
[1717730451736,0.00862,70876.0,70875.0,1.33845528]
[1717730451946,0.00862,70876.0,70875.0,1.34645528]
[1717730453213,0.00862,70876.0,70875.0,1.35445528]
[1717730453416,0.00862,70876.0,70875.0,1.34645528]
[1717730453618,0.00862,70876.0,70875.0,1.33845528]
[1717730453834,0.00862,70876.0,70875.0,1.34645528]
[1717730454496,0.00862,70876.0,70875.0,1.35444]
[1717730457339,0.00862,70876.0,70875.0,1.36306]
[1717730457854,0.00862,70876.0,70875.0,1.16106]
[1717730458110,0.00862,70876.0,70875.0,1.36306]
[1717730459083,0.00862,70876.0,70875.0,1.16306]
[1717730459302,0.00862,70876.0,70875.0,1.16106]
[1717730459922,0.00862,70876.0,70875.0,1.16306]
[1717730460344,0.00862,70876.0,70875.0,1.24406]
[1717730460552,0.00862,70876.0,70875.0,1.16106]
[1717730460757,0.00862,70876.0,70875.0,1.36306]
[1717730461597,0.00862,70876.0,70875.0,1.35506]
[1717730461805,0.00862,70876.0,70875.0,1.37280764]
[1717730462640,0.00862,70876.0,70875.0,1.2264777]
[1717730463072,0.00862,70876.0,70875.0,1.0264777]
[1717730463299,0.00862,70876.0,70875.0,1.2264777]
[1717730463510,0.00862,70876.0,70875.0,1.0174777]
[1717730463731,0.00862,70876.0,70875.0,1.4641777]
[1717730463966,0.00862,70876.0,70875.0,1.4731777]
[1717730464592,0.00862,70876.0,70875.0,1.7553637]
[1717730465750,0.00862,70876.0,70875.0,1.6006637]
[1717730465976,0.24302,70876.0,70875.0,1.3156637]
[1717730467720,0.00862,70876.0,70875.0,1.5176637]
[1717730468353,0.00862,70876.0,70875.0,1.3176637]
[1717730468577,0.00862,70876.0,70875.0,1.5176637]
[1717730469291,0.00862,70876.0,70875.0,1.3156637]
[1717730469762,0.00862,70876.0,70875.0,1.29418243]
[1717730470002,0.00862,70876.0,70875.0,1.3176637]
[1717730470447,0.00862,70876.0,70875.0,1.5176637]
[1717730470897,0.00862,70876.0,70875.0,1.3176637]
[1717730472230,0.00862,70876.0,70875.0,1.3156637]
[1717730472448,0.00862,70876.0,70875.0,1.3176637]
[1717730473556,0.00862,70876.0,70875.0,1.5176637]
[1717730473760,0.00862,70876.0,70875.0,1.3156637]
[1717730474613,0.00862,70876.0,70875.0,1.29418243]
[1717730474816,0.00862,70876.0,70875.0,1.3156637]
[1717730475028,0.00862,70876.0,70875.0,1.37508186]
[1717730475234,0.00862,70876.0,70875.0,1.30808186]
[1717730475448,0.00862,70876.0,70875.0,1.01589586]
[1717730475449,0.24042,70876.0,70875.0,1.01589586]
[1717730475619,0.24042,70876.0,70875.0,1.0234777]
[1717730475863,0.24042,70876.0,70875.0,1.0334777]
[1717730476596,0.24042,70876.0,70875.0,1.01199643]
[1717730477247,0.24042,70876.0,70875.0,1.0334777]
[1717730477456,0.24042,70876.0,70875.0,0.9564777]
[1717730477676,0.24042,70876.0,70875.0,0.9478577]
[1717730477882,0.24042,70876.0,70875.0,1.0148577]
[1717730478579,0.24042,70876.0,70875.0,1.00337643]
[1717730478799,0.24042,70876.0,70875.0,1.0148577]
[1717730481629,0.00862,70876.0,70875.0,1.0248577]
[1717730481833,0.00862,70876.0,70875.0,1.0268577]
[1717730482271,0.00862,70876.0,70875.0,1.02685855]
[1717730482484,0.00862,70876.0,70875.0,1.08628174]
[1717730482697,0.00862,70876.0,70875.0,1.36846774]
[1717730482914,0.00862,70876.0,70875.0,1.56846774]
[1717730483577,0.00086,70878.0,70877.0,1.43972627]
[1717730483790,0.004,70889.0,70888.0,1.15748327]
[1717730483996,0.004,70899.0,70898.0,0.44462327]
[1717730484205,0.004,70899.0,70898.0,1.19188291]
[1717730484429,0.00862,70907.0,70902.0,0.89519927]
[1717730484667,0.00862,70907.0,70902.0,1.58486184]
[1717730485319,0.00862,70907.0,70902.0,1.18243334]
[1717730485528,0.00862,70907.0,70902.0,1.06927306]
[1717730485733,0.00862,70907.0,70902.0,1.08327306]
[1717730485945,0.00862,70907.0,70902.0,1.25650927]
[1717730486152,0.00862,70907.0,70902.0,1.24250927]
[1717730486879,0.00862,70907.0,70902.0,1.20085441]
[1717730487100,0.00862,70907.0,70902.0,1.21485441]
[1717730487318,0.00862,70907.0,70902.0,1.20085441]
[1717730487528,0.00862,70907.0,70902.0,1.22785441]
[1717730487992,0.00862,70907.0,70902.0,1.21385441]
[1717730488450,0.00862,70907.0,70902.0,1.22685441]
[1717730489066,0.00862,70907.0,70902.0,0.83383548]
[1717730489067,0.1529,70905.0,70902.0,0.83383548]
[1717730489278,0.1529,70905.0,70902.0,0.82083548]
[1717730490831,0.1529,70905.0,70902.0,0.81883548]
[1717730491117,0.1529,70905.0,70902.0,0.83083548]
[1717730491305,0.1529,70905.0,70902.0,0.80783548]
[1717730491627,0.1529,70905.0,70902.0,0.81683548]
[1717730491880,0.1529,70905.0,70902.0,0.82583548]
[1717730492350,0.1529,70905.0,70902.0,0.75269927]
[1717730492793,0.1529,70905.0,70902.0,0.95269927]
[1717730493009,0.0766,70906.0,70902.0,0.95469927]
[1717730493220,0.00862,70907.0,70902.0,0.95469927]
[1717730493431,0.00862,70907.0,70902.0,1.23677827]
[1717730494532,0.00862,70907.0,70902.0,1.22777827]
[1717730494747,0.00862,70907.0,70902.0,1.23177827]
[1717730495233,0.00862,70907.0,70902.0,1.24477827]
[1717730495453,0.00862,70907.0,70902.0,1.04477827]
[1717730495666,0.00862,70907.0,70902.0,1.24477827]
[1717730497418,0.00862,70907.0,70902.0,1.34477827]
[1717730497857,0.00862,70907.0,70902.0,1.6377972]
[1717730498075,0.00862,70907.0,70902.0,1.9745972]
[1717730498549,0.00862,70907.0,70902.0,2.2566762]
[1717730498772,0.01262,70919.0,70918.0,0.32348127]
[1717730499003,0.01262,70919.0,70918.0,1.0810222]
[1717730499228,0.01262,70919.0,70918.0,1.2810222]
[1717730499444,0.01262,70919.0,70918.0,1.78386544]
[1717730499872,0.01262,70919.0,70918.0,1.9936522]
[1717730500321,0.01262,70919.0,70918.0,1.5445372]
[1717730500549,0.01262,70919.0,70918.0,1.7116372]
[1717730500775,0.01262,70919.0,70918.0,1.9936522]
[1717730501421,0.01262,70919.0,70918.0,2.0216522]
[1717730501650,0.01262,70919.0,70918.0,1.7256372]
[1717730502103,0.01262,70919.0,70918.0,2.0216522]
[1717730502312,0.01262,70919.0,70918.0,2.01950561]
[1717730502777,0.01262,70919.0,70918.0,2.03350561]
[1717730502961,0.004,70929.0,70921.0,1.27708827]
[1717730503217,0.004,70929.0,70921.0,1.55882749]
[1717730503863,0.004,70929.0,70921.0,1.84083049]
[1717730504337,0.004,70929.0,70928.0,1.17702127]
[1717730504552,0.004,70929.0,70928.0,1.6115402]
[1717730505420,0.004,70929.0,70928.0,1.8935162]
[1717730505640,0.004,70929.0,70928.0,1.9215162]
[1717730505873,0.004,70929.0,70928.0,2.0575162]
[1717730506095,0.004,70929.0,70928.0,2.1575162]
[1717730506326,0.004,70929.0,70928.0,2.1715162]
[1717730506714,0.004,70929.0,70928.0,2.0715162]
[1717730506934,0.004,70929.0,70928.0,2.0575162]
[1717730507826,0.004,70929.0,70928.0,2.0715162]
[1717730508075,0.0140808,70938.0,70937.0,0.72268127]
[1717730508300,0.0140808,70938.0,70937.0,1.5801102]
[1717730508757,0.04213747,70976.0,70958.0,0.89486527]
[1717730508981,0.004,70979.0,70958.0,1.1043842]
[1717730508982,0.04213747,70977.0,70958.0,1.1043842]
[1717730509196,0.004,70979.0,70958.0,0.98738559]
[1717730509438,0.169,70959.0,70958.0,0.80136527]
[1717730509669,0.169,70959.0,70958.0,0.70136527]
[1717730509900,0.169,70959.0,70958.0,0.53426527]
[1717730510382,0.169,70959.0,70958.0,0.54226527]
[1717730510799,0.169,70959.0,70958.0,0.56526527]
[1717730511873,0.169,70959.0,70958.0,0.55726527]
[1717730512077,0.169,70959.0,70958.0,0.57026527]
[1717730512491,0.169,70959.0,70958.0,0.56226527]
[1717730512699,0.169,70959.0,70958.0,0.57126527]
[1717730512918,0.169,70959.0,70958.0,0.57826527]
[1717730514919,0.169,70959.0,70958.0,0.55726527]
[1717730515119,0.169,70959.0,70958.0,0.56726527]
[1717730515351,0.169,70959.0,70958.0,0.57626527]
[1717730515560,0.004,70959.0,70958.0,0.85812127]
[1717730515979,0.004,70959.0,70958.0,0.85412127]
[1717730516339,0.004,70959.0,70958.0,0.85112127]
[1717730516576,0.004,70959.0,70958.0,0.85512127]
[1717730516818,0.004,70959.0,70958.0,0.84912127]
[1717730517032,0.00486,70959.0,70958.0,0.84912127]
[1717730517672,0.00486,70959.0,70958.0,0.83912127]
[1717730518123,0.00486,70959.0,70958.0,0.85578726]
[1717730518331,0.00486,70959.0,70958.0,0.88178726]
[1717730518540,0.00486,70959.0,70958.0,0.76703126]
[1717730519224,0.00486,70959.0,70958.0,0.75503126]
[1717730519449,0.00486,70959.0,70958.0,0.74103126]
[1717730519891,0.00486,70959.0,70958.0,0.75203126]
[1717730520254,0.00486,70959.0,70958.0,0.76503126]
[1717730521323,0.00486,70959.0,70958.0,0.74103126]
[1717730521750,0.00486,70959.0,70958.0,0.75703126]
[1717730522713,0.00486,70959.0,70958.0,0.90320357]
[1717730522922,0.25096,70959.0,70958.0,0.70795631]
[1717730523364,0.25096,70959.0,70958.0,0.561784]
[1717730524213,0.25096,70959.0,70958.0,0.70797314]
[1717730524420,0.25096,70959.0,70958.0,0.561784]
[1717730524636,0.25096,70959.0,70958.0,0.179928]
[1717730525323,0.39537893,70959.0,70958.0,0.16219256]
[1717730525577,0.39537893,70959.0,70958.0,0.15319256]
[1717730525793,0.39537893,70959.0,70952.0,0.140939]
[1717730525794,0.14927893,70959.0,70952.0,0.140939]
[1717730526000,0.00486,70959.0,70958.0,0.01]
[1717730526231,0.40486,70959.0,70958.0,0.007]
[1717730526474,0.0775,70957.0,70946.0,0.140952]
[1717730526696,0.0752,70955.0,70946.0,0.140952]
[1717730526980,0.2415,70953.0,70946.0,0.140952]
[1717730527197,0.1663,70957.0,70946.0,0.140952]
[1717730527436,0.1515,70955.0,70947.0,0.140949]
[1717730527690,0.234,70953.0,70948.0,0.03448127]
[1717730527903,0.234,70953.0,70952.0,0.001]
[1717730528330,0.234,70953.0,70952.0,0.01148127]
[1717730528555,0.234,70953.0,70952.0,0.01248127]
[1717730528793,0.234,70953.0,70952.0,0.15242127]
[1717730529019,0.234,70953.0,70952.0,0.17542127]
[1717730529265,0.234,70953.0,70952.0,0.17742127]
[1717730530366,0.234,70953.0,70952.0,0.16594]
[1717730531209,0.234,70953.0,70952.0,0.16394]
[1717730531427,0.14441893,70953.0,70948.0,0.140947]
[1717730531640,0.002,70953.0,70952.0,0.001]
[1717730531852,0.002,70953.0,70948.0,0.140947]
[1717730532066,0.145786,70959.0,70948.0,0.140947]
[1717730532281,0.2475,70955.0,70952.0,0.001]
[1717730532497,0.2495,70953.0,70952.0,0.001]
[1717730532727,0.39391893,70953.0,70952.0,0.001]
[1717730532944,0.39191893,70953.0,70952.0,0.001]
[1717730533213,0.1651,70951.0,70948.0,0.140947]
[1717730533436,0.1651,70949.0,70948.0,0.140947]
[1717730533658,0.2475,70949.0,70948.0,0.163947]
[1717730534565,0.2475,70949.0,70948.0,0.140947]
[1717730534759,0.2475,70949.0,70948.0,0.141947]
[1717730535375,0.2485,70949.0,70948.0,0.147947]
[1717730535841,0.2485,70949.0,70948.0,0.151947]
[1717730536700,0.2485,70949.0,70948.0,0.011]
[1717730536701,0.39291893,70949.0,70948.0,0.011]
[1717730543177,0.39291893,70949.0,70948.0,0.151948]
[1717730544673,0.39291893,70949.0,70948.0,0.16342927]
[1717730550054,0.39291893,70949.0,70948.0,0.23022927]
[1717730552533,0.39291893,70949.0,70948.0,0.218748]
[1717730553594,0.39291893,70949.0,70948.0,0.151948]
[1717730555361,0.39291893,70949.0,70948.0,0.011]
[1717730555804,0.45609325,70949.0,70948.0,0.011]
[1717730556003,0.74855832,70949.0,70948.0,0.011]
[1717730556454,0.45609325,70949.0,70948.0,0.011]
[1717730557005,0.39291893,70949.0,70948.0,0.011]
[1717730559718,0.45615581,70949.0,70948.0,0.011]
[1717730559944,0.43507795,70949.0,70948.0,0.011]
[1717730560388,0.39291893,70949.0,70948.0,0.011]
[1717730560827,0.43507958,70949.0,70948.0,0.011]
[1717730562300,0.45615581,70949.0,70948.0,0.011]
[1717730564404,0.7052974,70949.0,70948.0,0.011]
[1717730565031,0.39291893,70949.0,70948.0,0.011]
[1717730565237,0.78961123,70949.0,70948.0,0.011]
[1717730566511,0.70529539,70949.0,70948.0,0.011]
[1717730566750,0.45621629,70949.0,70948.0,0.011]
[1717730566971,0.53490298,70949.0,70948.0,0.011]
[1717730567175,0.47160562,70949.0,70948.0,0.011]
[1717730567856,0.86829342,70949.0,70948.0,0.011]
[1717730568280,0.78960673,70949.0,70948.0,0.011]
[1717730569293,0.70529089,70949.0,70948.0,0.011]
[1717730572097,0.70530286,70949.0,70948.0,0.011]
[1717730577256,0.99777477,70949.0,70948.0,0.011]
[1717730577701,0.70530286,70949.0,70948.0,0.011]
[1717730578968,0.70530286,70949.0,70948.0,0.011946]
[1717730580627,0.70530621,70949.0,70948.0,0.011946]
[1717730581386,0.45780621,70949.0,70948.0,0.011946]
[1717730581803,0.20877263,70949.0,70948.0,0.011946]
[1717730583224,0.14541893,70949.0,70948.0,0.011946]
[1717730583388,0.20877263,70949.0,70948.0,0.011946]
[1717730584893,0.14541893,70949.0,70948.0,0.011946]
[1717730585114,0.45777866,70949.0,70948.0,0.011946]
[1717730585467,0.14541893,70949.0,70948.0,0.011946]
[1717730585647,0.45777823,70949.0,70948.0,0.011946]
[1717730590318,0.45777837,70949.0,70948.0,0.011946]
[1717730593127,0.54225518,70949.0,70948.0,0.011946]
[1717730598139,0.45777837,70949.0,70948.0,0.011946]
[1717730599081,0.4577778,70949.0,70948.0,0.011946]
[1717730599479,0.4577778,70949.0,70948.0,0.02342727]
[1717730599687,0.4577778,70949.0,70948.0,0.011946]
[1717730600111,0.14541893,70949.0,70948.0,0.011946]
[1717730600329,0.45776749,70949.0,70948.0,0.011946]
[1717730600975,0.45776749,70949.0,70948.0,0.152894]
[1717730602352,0.14541893,70949.0,70948.0,0.152894]
[1717730602578,0.4577678,70949.0,70948.0,0.152894]
[1717730602794,0.54228772,70949.0,70948.0,0.152894]
[1717730603931,0.4577678,70949.0,70948.0,0.152894]
[1717730604161,0.56341149,70949.0,70948.0,0.152894]
[1717730605498,0.56344064,70949.0,70948.0,0.152894]
[1717730606341,0.14541893,70949.0,70948.0,0.152894]
[1717730606545,0.56344107,70949.0,70948.0,0.152894]
[1717730609195,0.56344107,70949.0,70948.0,0.16437527]
[1717730609440,0.56344107,70949.0,70948.0,0.152894]
[1717730609862,0.14541893,70949.0,70948.0,0.152894]
[1717730610076,0.5634426,70949.0,70948.0,0.152894]
[1717730610454,0.5634426,70949.0,70948.0,0.219694]
[1717730617952,0.5634426,70949.0,70948.0,0.011946]
[1717730619937,0.56345965,70949.0,70948.0,0.011946]
[1717730620356,0.45778114,70949.0,70948.0,0.011946]
[1717730620806,0.56346416,70949.0,70948.0,0.011946]
[1717730621018,0.45778114,70949.0,70948.0,0.011946]
[1717730621686,0.14541893,70949.0,70948.0,0.011946]
[1717730621907,0.45778114,70949.0,70948.0,0.011946]
[1717730622170,0.14541893,70949.0,70948.0,0.011946]
[1717730622388,0.45778113,70949.0,70948.0,0.011946]
[1717730625815,0.69738113,70949.0,70948.0,0.011946]
[1717730628959,0.45778113,70949.0,70948.0,0.011946]
[1717730630797,0.45778113,70949.0,70948.0,0.02342727]
[1717730631590,0.54236744,70949.0,70948.0,0.02342727]
[1717730631837,0.45778113,70949.0,70948.0,0.02342727]
[1717730632096,0.54236152,70949.0,70948.0,0.02342727]
[1717730632297,0.54236152,70949.0,70948.0,0.16437527]
[1717730635795,0.54236152,70949.0,70948.0,0.23117527]
[1717730636668,0.54236152,70949.0,70948.0,0.16437527]
[1717730636893,0.54236152,70949.0,70948.0,0.23117527]
[1717730637555,0.45778113,70949.0,70948.0,0.23117527]
[1717730637903,0.54236152,70949.0,70948.0,0.23117527]
[1717730639001,0.45778113,70949.0,70948.0,0.23117527]
[1717730640433,0.45778113,70949.0,70948.0,0.152894]
[1717730641535,0.3133622,70949.0,70948.0,0.46387527]
[1717730642017,0.001,70949.0,70948.0,0.46387527]
[1717730642694,0.31334058,70949.0,70948.0,0.46387527]
[1717730643329,0.001,70949.0,70948.0,0.46387527]
[1717730645202,0.0644091,70949.0,70948.0,0.46387527]
[1717730645597,0.001,70949.0,70948.0,0.46387527]
[1717730646157,0.06440793,70949.0,70948.0,0.46387527]
[1717730646788,0.001,70949.0,70948.0,0.46387527]
[1717730647219,0.0644069,70949.0,70948.0,0.46387527]
[1717730647985,0.001,70949.0,70948.0,0.48687527]
[1717730648435,0.001,70949.0,70948.0,0.76877127]
[1717730654197,0.001,70949.0,70948.0,0.70197127]
[1717730654410,0.001,70949.0,70948.0,0.76877127]
[1717730655352,0.001,70949.0,70948.0,0.77877127]
[1717730655788,0.001,70949.0,70948.0,0.76877127]
[1717730656902,0.001,70949.0,70948.0,0.75729]
[1717730657208,0.001,70949.0,70948.0,0.76877127]
[1717730657646,0.001,70949.0,70948.0,0.77877127]
[1717730657854,0.001,70949.0,70948.0,0.76877127]
[1717730658722,0.001,70949.0,70948.0,0.75729]
[1717730660317,0.001,70949.0,70948.0,1.06066727]
[1717730660531,0.001,70949.0,70948.0,1.16066727]
[1717730660773,0.001,70949.0,70948.0,1.16266727]
[1717730661449,0.001,70949.0,70948.0,1.15866727]
[1717730661670,0.001,70949.0,70948.0,1.15666727]
[1717730661883,0.00086,70958.0,70957.0,0.23401127]
[1717730662094,0.00086,70958.0,70957.0,0.32381127]
[1717730663613,0.00086,70958.0,70957.0,0.33381127]
[1717730663758,0.00086,70958.0,70957.0,0.34081127]
[1717730664397,0.00086,70958.0,70957.0,0.55107127]
[1717730664585,0.00086,70958.0,70957.0,0.79007127]
[1717730664994,0.00086,70958.0,70957.0,0.78007127]
[1717730665622,0.00086,70958.0,70957.0,0.79007127]
[1717730666462,0.00086,70958.0,70957.0,0.78007127]
[1717730666714,0.00086,70958.0,70957.0,0.79007127]
[1717730666914,0.00086,70958.0,70957.0,0.78007127]
[1717730668497,0.00086,70958.0,70957.0,0.79007127]
[1717730669151,0.00086,70958.0,70957.0,0.78007127]
[1717730669357,0.00086,70958.0,70957.0,0.79007127]
[1717730672545,0.23686,70958.0,70957.0,0.47427127]
[1717730672765,0.00086,70958.0,70957.0,0.54107127]
[1717730674694,0.00086,70958.0,70957.0,0.52959]
[1717730675682,0.00086,70958.0,70957.0,0.83293127]
[1717730675893,0.00086,70958.0,70957.0,1.07703127]
[1717730676102,0.00086,70958.0,70957.0,1.06703127]
[1717730678063,0.00086,70958.0,70957.0,1.05555]
[1717730678444,0.00086,70958.0,70957.0,1.06703127]
[1717730678656,0.00086,70958.0,70957.0,1.07703127]
[1717730679543,0.00086,70958.0,70957.0,0.47427127]
[1717730679764,0.00086,70958.0,70957.0,0.54107127]
[1717730679979,0.00086,70958.0,70957.0,0.47427127]
[1717730680206,0.00086,70958.0,70957.0,0.54107127]
[1717730680428,0.00086,70958.0,70957.0,0.47427127]
[1717730680642,0.00086,70958.0,70957.0,0.54107127]
[1717730681222,0.00086,70958.0,70957.0,0.52959]
[1717730681704,0.00086,70958.0,70957.0,0.65107127]
[1717730682148,0.00086,70958.0,70957.0,0.73067127]
[1717730683225,0.00086,70958.0,70957.0,1.01253127]
[1717730683475,0.00086,70958.0,70957.0,1.17193127]
[1717730684216,0.00086,70958.0,70957.0,1.16193127]
[1717730684625,0.00086,70958.0,70957.0,1.16993127]
[1717730685887,0.00086,70958.0,70957.0,1.16293127]
[1717730686320,0.00086,70958.0,70957.0,1.16893127]
[1717730686960,0.00086,70958.0,70957.0,1.37093127]
[1717730687357,0.00086,70958.0,70957.0,1.65279127]
[1717730688533,0.00086,70958.0,70957.0,1.44479127]
[1717730688737,0.00086,70958.0,70957.0,1.64479127]
[1717730689096,0.00086,70958.0,70957.0,1.63879127]
[1717730689494,0.00086,70958.0,70957.0,1.64079127]
[1717730690663,0.00086,70958.0,70957.0,1.64579127]
[1717730691708,0.00086,70958.0,70957.0,1.7902102]
[1717730696072,0.00086,70958.0,70957.0,1.7234102]
[1717730696283,0.00086,70958.0,70957.0,1.7902102]
[1717730696708,0.00086,70958.0,70957.0,1.56872893]
[1717730696918,0.00086,70958.0,70957.0,1.7902102]
[1717730698631,0.00086,70958.0,70957.0,1.56672893]
[1717730699245,0.00086,70958.0,70957.0,1.7902102]
[1717730699441,0.00086,70958.0,70957.0,1.56672893]
[1717730699610,0.00086,70958.0,70957.0,1.7902102]
[1717730699885,0.00086,70958.0,70957.0,1.56672893]
[1717730700406,0.00086,70958.0,70957.0,1.61385271]
[1717730700975,0.00086,70958.0,70957.0,1.54705271]
[1717730701183,0.00086,70958.0,70957.0,1.61385271]
[1717730701592,0.00086,70958.0,70957.0,1.81585271]
[1717730701996,0.00086,70958.0,70957.0,1.61385271]
[1717730702198,0.00086,70958.0,70957.0,1.54905271]
[1717730702401,0.00086,70958.0,70957.0,1.81585271]
[1717730702977,0.00086,70958.0,70957.0,1.59237144]
[1717730703201,0.00086,70958.0,70957.0,1.61485271]
[1717730703441,0.00086,70958.0,70957.0,1.61385271]
[1717730704044,0.00086,70958.0,70957.0,1.81585271]
[1717730704908,0.00086,70958.0,70957.0,1.59237144]
[1717730705321,0.00086,70958.0,70957.0,1.61385271]
[1717730705579,0.00086,70958.0,70957.0,1.81585271]
[1717730706400,0.00086,70958.0,70957.0,1.61385271]
[1717730706782,0.00086,70958.0,70957.0,1.81585271]
[1717730707916,0.00086,70958.0,70957.0,1.35337144]
[1717730708749,0.00086,70958.0,70957.0,1.37485271]
[1717730708953,0.00086,70958.0,70957.0,1.37579871]
[1717730709260,0.00086,70958.0,70957.0,1.65739871]
[1717730709433,0.00086,70958.0,70957.0,1.57779871]
[1717730710220,0.00086,70958.0,70957.0,1.37579871]
[1717730710414,0.00086,70958.0,70957.0,1.57779871]
[1717730710869,0.00086,70958.0,70957.0,1.65729871]
[1717730711676,0.00086,70958.0,70957.0,1.57969133]
[1717730711973,0.00086,70958.0,70957.0,1.45729871]
[1717730712179,0.00086,70958.0,70957.0,1.45529871]
[1717730712396,0.00086,70958.0,70957.0,1.59049871]
[1717730712610,0.00086,70958.0,70957.0,1.45729871]
[1717730712832,0.00086,70958.0,70957.0,1.43381744]
[1717730713061,0.00086,70958.0,70957.0,1.45529871]
[1717730713281,0.00086,70958.0,70957.0,1.37579871]
[1717730713736,0.00086,70958.0,70957.0,1.76699133]
[1717730713948,0.00086,70958.0,70957.0,1.37579871]
[1717730714205,0.00086,70958.0,70957.0,1.76699133]
[1717730715464,0.00086,70958.0,70957.0,1.56699133]
[1717730715678,0.00086,70958.0,70957.0,1.54351006]
[1717730716566,0.00086,70958.0,70957.0,1.56499133]
[1717730716793,0.00086,70958.0,70957.0,1.62411566]
[1717730717445,0.00086,70958.0,70957.0,1.62611566]
[1717730717669,0.00086,70958.0,70957.0,1.82611566]
[1717730717921,0.00086,70958.0,70957.0,1.62411566]
[1717730718173,0.00086,70958.0,70957.0,1.59847315]
[1717730718404,0.00086,70958.0,70957.0,1.60047315]
[1717730719260,0.00086,70958.0,70957.0,1.59847315]
[1717730719465,0.00086,70958.0,70957.0,1.57699188]
[1717730722148,0.00086,70958.0,70957.0,1.59847315]
[1717730722356,0.00055471,70958.0,70957.0,1.60047315]
[1717730722762,0.00055471,70958.0,70957.0,1.80047315]
[1717730722993,0.00055471,70958.0,70957.0,1.60047315]
[1717730723433,0.00055471,70958.0,70957.0,1.80047315]
[1717730724084,0.00055471,70958.0,70957.0,1.60047315]
[1717730724261,0.00055471,70958.0,70957.0,1.80047315]
[1717730724827,0.00055471,70958.0,70957.0,1.60047315]
[1717730725242,0.00055471,70958.0,70957.0,1.59847315]
[1717730725455,0.00055471,70958.0,70957.0,1.60047315]
[1717730726156,0.00055471,70958.0,70957.0,1.80047315]
[1717730726358,0.00055471,70958.0,70957.0,1.60047315]
[1717730726529,0.00055471,70958.0,70957.0,1.80047315]
[1717730727140,0.00055471,70958.0,70957.0,1.60047315]
[1717730727860,0.00055471,70958.0,70957.0,1.57699188]
[1717730728063,0.00055471,70958.0,70957.0,1.59847315]
[1717730728263,0.00055471,70958.0,70957.0,1.57699188]
[1717730728498,0.00055471,70958.0,70957.0,1.59847315]
[1717730728837,0.00055471,70958.0,70957.0,1.40928053]
[1717730729059,0.00055471,70958.0,70957.0,1.60219136]
[1717730729267,0.00055471,70958.0,70957.0,1.80219136]
[1717730730340,0.00055471,70958.0,70957.0,1.57871009]
[1717730730544,0.00055471,70958.0,70957.0,1.80219136]
[1717730731525,0.00055471,70958.0,70957.0,1.57871009]
[1717730732630,0.00055471,70958.0,70957.0,1.60019136]
[1717730732813,0.00055471,70958.0,70957.0,1.60219136]
[1717730734137,0.00055471,70958.0,70957.0,1.57871009]
[1717730734352,0.00055471,70958.0,70957.0,1.60019136]
[1717730734608,0.00055471,70958.0,70957.0,1.57743145]